fUST/lending_fUST_20260218
["ID","MTS","AMOUNT","RATE_DAILY","PERIOD"]
[405883853,1771390238923,-500.0,5.896e-05,2]
[405883855,1771390238933,-500.0,5.896e-05,2]
[405883856,1771390238943,-500.0,5.896e-05,2]
[405883858,1771390238952,-500.0,5.896e-05,2]
[405883860,1771390238961,-500.0,5.896e-05,2]
[405883862,1771390238970,-500.0,5.896e-05,2]
[405883864,1771390238980,-500.0,5.896e-05,2]
[405883866,1771390238989,-500.0,5.896e-05,2]
[405883868,1771390238998,-500.0,5.896e-05,2]
[405883870,1771390239008,-500.0,5.896e-05,2]
[405883872,1771390239023,-500.0,5.896e-05,2]
[405883874,1771390239032,-183.30712901,5.896e-05,2]
[405883876,1771390239041,-500.0,5.896e-05,2]
[405883878,1771390239050,-500.0,5.896e-05,2]
[405883880,1771390239061,-500.0,5.896e-05,2]
[405883882,1771390239071,-500.0,5.896e-05,2]
[405883884,1771390239080,-500.0,5.896e-05,2]
[405883886,1771390239091,-500.0,5.896e-05,2]
[405883888,1771390239101,-500.0,5.896e-05,2]
[405883890,1771390239110,-344.95462579,5.896e-05,2]
[405883892,1771390239119,-500.0,5.896e-05,2]
[405883894,1771390239128,-500.0,5.896e-05,2]
[405883896,1771390239137,-500.0,5.896e-05,2]
[405883898,1771390239146,-500.0,5.896e-05,2]
[405883900,1771390239156,-500.0,5.896e-05,2]
[405883902,1771390239165,-500.0,5.896e-05,2]
[405883904,1771390239174,-500.0,5.896e-05,2]
[405883905,1771390239183,-500.0,5.896e-05,2]
[405883907,1771390239192,-500.0,5.896e-05,2]
[405883909,1771390239202,-500.0,5.896e-05,2]
[405883911,1771390239211,-500.0,5.896e-05,2]
[405883913,1771390239221,-500.0,5.896e-05,2]
[405883915,1771390239230,-500.0,5.896e-05,2]
[405883917,1771390239240,-500.0,5.896e-05,2]
[405883919,1771390239249,-634.73227339,5.896e-05,2]
[405883920,1771390239258,-500.0,5.896e-05,2]
[405883921,1771390239267,-500.0,5.896e-05,2]
[405883922,1771390239276,-500.0,5.896e-05,2]
[405883923,1771390239285,-500.0,5.896e-05,2]
[405883924,1771390239294,-300.0,5.897e-05,2]
[405883925,1771390239303,-300.0,5.897e-05,2]
[405883926,1771390239312,-300.0,5.897e-05,2]
[405883927,1771390239321,-461.860619,5.899e-05,2]
[405883928,1771390239330,-1680.0,6.041e-05,2]
[405883929,1771390239339,-10000.0,6.066e-05,2]
[405883930,1771390239348,-461.860619,6.138e-05,2]
[405883931,1771390239357,-300.0,6.186e-05,2]
[405883932,1771390239366,-300.0,6.186e-05,2]
[405883933,1771390239375,-300.0,6.186e-05,2]
[405883934,1771390239384,-300.0,6.186e-05,2]
[405883935,1771390239398,-300.0,6.186e-05,2]
[405883936,1771390239407,-300.0,6.186e-05,2]
[405883937,1771390239416,-300.0,6.186e-05,2]
[405883938,1771390239426,-300.0,6.186e-05,2]
[405883939,1771390239435,-300.0,6.186e-05,2]
[405883940,1771390239444,-300.0,6.186e-05,2]
[405883941,1771390239453,-300.0,6.186e-05,2]
[405883942,1771390239462,-300.0,6.186e-05,2]
[405883943,1771390239470,-300.0,6.186e-05,2]
[405883944,1771390239479,-300.0,6.186e-05,2]
[405883945,1771390239488,-300.0,6.186e-05,2]
[405883946,1771390239497,-600.0,6.309e-05,2]
[405883947,1771390239506,-461.860619,6.376e-05,2]
[405883948,1771390239515,-286.0,6.487e-05,2]
[405883949,1771390239524,-300.0,6.487e-05,2]
[405883950,1771390239533,-420.0,6.487e-05,2]
[405883951,1771390239542,-461.860619,6.614e-05,2]
[405883952,1771390239551,-483.0,6.645e-05,2]
[405883953,1771390239560,-461.860619,6.852e-05,2]
[405883954,1771390239568,-720.0,6.94e-05,2]
[405883955,1771390239578,-165.109089,7.092e-05,2]
[405883956,1771390239587,-37016.9020103,7.094e-05,2]
[405883957,1771390239596,-291.8829195,7.128e-05,2]
[405883958,1771390239605,-300.0,7.129e-05,2]
[405883959,1771390239614,-587.0,7.136e-05,2]
[405883960,1771390239623,-177.0,7.632e-05,2]
[405883961,1771390239631,-864.0,7.634e-05,2]
[405883962,1771390239640,-493.0,7.849e-05,2]
[405883963,1771390239649,-459.29955694,8.219e-05,2]
[405883964,1771390239658,-1000.0,8.397e-05,2]
[405883965,1771390239667,-1000.0,9.237e-05,2]
[405883966,1771390239676,-244.0,9.237e-05,2]
[405883967,1771390239686,-204.0,9.632e-05,2]
[405883968,1771390239696,-247.2398083,9.841e-05,2]
[405883969,1771390239704,-191.28905417,0.0001,2]
[405883970,1771390239713,-1000.0,0.0001016,2]
[405883971,1771390239722,-492.0,0.0001016,2]
[405883972,1771390239731,-633.77746159,0.00010163,2]
[405883973,1771390239740,-1125.58877179,0.00010163,2]
[405883974,1771390239750,-426.40801726,0.00010618,2]
[405883975,1771390239759,-1123.78985656,0.00010698,2]
[405883976,1771390239769,-1754.16572923,0.00010698,2]
[405883977,1771390239778,-24169.6428111,0.00010919,2]
[405883978,1771390239787,-8499.4350658,0.00010959,2]
[405883979,1771390239796,-1000.0,0.00011176,2]
[405883980,1771390239805,-791.0,0.00011176,2]
[405883981,1771390239814,-299.1368882,0.00011259,2]
[405883982,1771390239823,-150.0,0.00011404,2]
[405883983,1771390239833,-150.0,0.00011459,2]
[405883984,1771390239842,-150.0,0.00011514,2]
[405883985,1771390239851,-169.54124412,0.00011568,2]
[405883986,1771390239860,-231.0,0.00011632,2]
[405883987,1771390239869,-1000.0,0.00012294,2]
[405883988,1771390239878,-1000.0,0.00012294,2]
[405883989,1771390239887,-5392.9762711,0.00012371,2]
[405883990,1771390239897,-958.88344152,0.000125,2]
[405883991,1771390239906,-500.0,0.00012557,2]
[405883992,1771390239915,-1203.335659,0.00012695,2]
[405883993,1771390239924,-499.3,0.00012787,2]
[405883994,1771390239933,-7135.35565445,0.000129,2]
[405883995,1771390239943,-7135.35565444,0.000129,2]
[405883996,1771390239952,-214.22700722,0.0001313,2]
[405883997,1771390239961,-385.608613,0.0001313,2]
[405883998,1771390239971,-684.84089669,0.0001313,2]
[405883999,1771390239981,-500.0,0.00013259,2]
[405884000,1771390239990,-219.12454147,0.00013273,2]
[405884001,1771390239999,-500.0,0.00013273,2]
[405884002,1771390240007,-500.42872228,0.00013273,2]
[405884003,1771390240022,-500.0,0.00013273,2]
[405884004,1771390240031,-500.0,0.00013273,2]
[405884006,1771390240040,-500.0,0.00013273,2]
[405884007,1771390240049,-166.44373926,0.00013273,2]
[405884008,1771390240059,-500.0,0.00013273,2]
[405884009,1771390240068,-500.0,0.00013273,2]
[405884011,1771390240077,-229.16317871,0.00013273,2]
[405884012,1771390240087,-550.588935,0.00013273,2]
[405884013,1771390240096,-500.0,0.00013273,2]
[405884014,1771390240105,-500.0,0.00013273,2]
[405884015,1771390240115,-265.64977033,0.00013273,2]
[405884016,1771390240124,-362.16830479,0.00013273,2]
[405884017,1771390240133,-500.0,0.00013273,2]
[405884018,1771390240142,-500.0,0.00013273,2]
[405884019,1771390240151,-500.0,0.00013273,2]
[405884020,1771390240160,-160.20125954,0.00013273,2]
[405884021,1771390240170,-500.0,0.00013273,2]
[405884022,1771390240179,-270.20127291,0.00013273,2]
[405884023,1771390240189,-153.39711806,0.00013273,2]
[405884024,1771390240198,-260.82452053,0.00013273,2]
[405884025,1771390240207,-500.0,0.00013273,2]
[405884026,1771390240216,-500.0,0.00013273,2]
[405884027,1771390240225,-500.0,0.00013273,2]
[405884028,1771390240234,-500.0,0.00013273,2]
[405884029,1771390240243,-502.52907218,0.00013273,2]
[405884030,1771390240252,-500.0,0.00013273,2]
[405884031,1771390240261,-531.9116802,0.00013273,2]
[405884032,1771390240270,-504.75393189,0.00013273,2]
[405884033,1771390240281,-244.08164273,0.0001334,5]
[405884034,1771390240291,-1000.0,0.00013523,2]
[405884035,1771390240300,-1000.0,0.00013523,2]
[405884036,1771390240311,-408.0,0.00013523,2]
[405884037,1771390240321,-258.0,0.00013632,2]
[405884038,1771390240330,-300.0,0.00013673,2]
[405884039,1771390240340,-301.94360093,0.00013698,2]
[405884040,1771390240351,-290.729965,0.00013699,2]
[405884041,1771390240362,-1000.0,0.00013699,2]
[405884042,1771390240372,-443.28702291,0.00013699,2]
[405884043,1771390240381,-503.11221213,0.00013699,2]
[405884044,1771390240392,-166.11387759,0.00013699,2]
[405884045,1771390240404,-500.0,0.00013699,2]
[405884046,1771390240414,-354.51572721,0.00013699,2]
[405884047,1771390240424,-228.57578645,0.00013699,2]
[405884048,1771390240437,-299.53185252,0.00013699,2]
[405884049,1771390240447,-500.0,0.00013699,2]
[405884050,1771390240457,-159.30447428,0.00013699,2]
[405884051,1771390240467,-200.0,0.00013699,2]
[405884052,1771390240478,-377.83978562,0.00013699,2]
[405884053,1771390240488,-500.0,0.00013699,2]
[405884054,1771390240499,-500.0,0.00013699,2]
[405884055,1771390240509,-501.30276854,0.00013699,2]
[405884056,1771390240518,-500.0,0.00013699,2]
[405884057,1771390240527,-500.0,0.00013699,2]
[405884058,1771390240537,-153.48314241,0.00013699,2]
[405884059,1771390240548,-500.0,0.00013699,2]
[405884060,1771390240556,-496.5651933,0.00013699,2]
[405884062,1771390240778,-3.4348067,0.00013699,2]
[405884063,1771390240788,-200.0,0.00013699,4]
[405884064,1771390240798,-500.0,0.00013699,2]
[405884065,1771390240807,-615.96098515,0.00013699,2]
[405884066,1771390240817,-19.14535336,0.00013699,2]
[405884146,1771390243723,-480.85464664,0.00013699,2]
[405884147,1771390243732,-312.49874486,0.00013699,2]
[405884148,1771390243744,-187.50125514,0.00013699,2]
[405884149,1771390243753,-500.0,0.00013699,2]
[405884150,1771390243763,-500.0,0.00013699,2]
[405884151,1771390243772,-158.28265056,0.00013699,2]
[405884152,1771390243781,-500.0,0.00013699,2]
[405884153,1771390243790,-500.0,0.00013699,2]
[405884154,1771390243800,-500.0,0.00013699,2]
[405884155,1771390243809,-501.18396863,0.00013699,2]
[405884156,1771390243819,-500.0,0.00013699,2]
[405884157,1771390243828,-576.30215063,0.00013699,2]
[405884158,1771390243837,-500.0,0.00013699,2]
[405884159,1771390243846,-500.0,0.00013699,2]
[405884160,1771390243855,-500.0,0.00013699,2]
[405884161,1771390243864,-500.0,0.00013699,2]
[405884162,1771390243874,-500.0,0.00013699,2]
[405884163,1771390243883,-500.0,0.00013699,2]
[405884164,1771390243892,-500.0,0.00013699,2]
[405884165,1771390243902,-481.60105259,0.00013699,2]
[405884166,1771390243912,-500.0,0.00013699,2]
[405884167,1771390243924,-500.0,0.00013699,2]
[405884168,1771390243934,-500.0,0.00013699,2]
[405884169,1771390243944,-500.0,0.00013699,2]
[405884170,1771390243953,-500.0,0.00013699,2]
[405884171,1771390243963,-169.51892245,0.00013699,2]
[405884172,1771390243978,-330.48107755,0.00013699,2]
[405884173,1771390243987,-500.0,0.00013699,2]
[405884174,1771390243997,-500.0,0.00013699,2]
[405884175,1771390244006,-500.0,0.00013699,2]
[405884176,1771390244019,-318.84892245,0.00013699,2]
[405884221,1771390246662,-181.15107755,0.00013699,2]
[405884222,1771390246672,-500.0,0.00013699,2]
[405884223,1771390246681,-500.0,0.00013699,2]
[405884224,1771390246690,-500.0,0.00013699,2]
[405884225,1771390246700,-500.0,0.00013699,2]
[405884226,1771390246709,-500.0,0.00013699,2]
[405884227,1771390246720,-500.0,0.00013699,2]
[405884228,1771390246731,-500.0,0.00013699,2]
[405884229,1771390246740,-500.0,0.00013699,2]
[405884230,1771390246749,-1000.0,0.00013821,2]
[405884231,1771390246759,-1000.0,0.00013821,2]
[405884232,1771390246769,-406.91624756,0.00013821,2]
[405884233,1771390246778,-1004.13667758,0.00013821,2]
[405884234,1771390246787,-1000.0,0.00013821,2]
[405884235,1771390246796,-1000.0,0.00013821,2]
[405884236,1771390246808,-470.10045035,0.00013821,2]
[405884237,1771390246817,-698.79708287,0.00013821,2]
[405884238,1771390256170,151.0,0.00014,30]
[405884239,1771390295252,151.0,0.00014,30]
[405884242,1771390335160,151.0,0.00014,30]
[405884243,1771390376606,151.0,0.00014,30]
[405884244,1771390427153,151.0,0.00014,30]
[405884245,1771390476068,151.0,0.00014,30]
[405884246,1771390506376,151.0,0.00014,30]
[405884247,1771390546501,151.0,0.00014,30]
[405884248,1771390595944,151.0,0.00014,30]
[405884249,1771390636406,151.0,0.00014,30]
[405884251,1771390675172,151.0,0.00014,30]
[405884252,1771390706411,151.0,0.000125,3]
[405884253,1771390746551,151.0,0.000125,3]
[405884254,1771390786463,151.0,0.00014,30]
[405884255,1771390817407,151.0,0.00014,30]
[405884257,1771390866478,151.0,0.00014,30]
[405884258,1771390907028,151.0,0.00014,30]
[405884259,1771390946627,151.0,0.00014,30]
[405884260,1771390985190,151.0,0.00014,30]
[405884261,1771391016029,151.0,0.000125,3]
[405884262,1771391046411,151.0,0.00014,30]
[405884263,1771391085174,151.0,0.00014,30]
[405884264,1771391125733,151.0,0.00014,30]
[405884269,1771391166588,151.0,0.00014,30]
[405884281,1771391170676,170.604504,3.999e-05,2]
[405884282,1771391200123,-258.86528852,5.44e-05,2]
[405884283,1771391215212,151.0,0.00014,30]
[405884284,1771391256452,151.0,0.00014,30]
[405884285,1771391295879,151.0,0.00014,30]
[405884286,1771391326487,151.0,0.00014,30]
[405884287,1771391348235,-816.84325631,5.279e-05,2]
[405884288,1771391348255,-150.0,5.306e-05,2]
[405884289,1771391348274,-2219.17241409,5.332e-05,2]
[405884290,1771391348294,-5000.0,5.386e-05,2]
[405884291,1771391348313,-502.0,5.664e-05,2]
[405884292,1771391348354,-701.0,5.717e-05,2]
[405884293,1771391348393,-300.0,5.717e-05,2]
[405884294,1771391348419,-300.0,5.717e-05,2]
[405884295,1771391348437,-31388.61678217,5.718e-05,2]
[405884296,1771391365074,-2725.21103419,5.661e-05,2]
[405884297,1771391365921,151.0,0.00014,30]
[405884298,1771391396300,151.0,0.00014,30]
[405884299,1771391426490,151.0,0.00014,30]
[405884350,1771391437785,-300.0,5.384e-05,2]
[405884352,1771391437794,-500.0,5.384e-05,2]
[405884354,1771391437803,-500.0,5.384e-05,2]
[405884356,1771391437813,-500.0,5.384e-05,2]
[405884358,1771391437822,-500.0,5.384e-05,2]
[405884360,1771391437831,-500.0,5.384e-05,2]
[405884362,1771391437841,-464.81190322,5.384e-05,2]
[405884364,1771391437850,-500.0,5.384e-05,2]
[405884366,1771391437859,-500.0,5.384e-05,2]
[405884368,1771391437868,-543.93952,5.384e-05,2]
[405884370,1771391437878,-500.0,5.384e-05,2]
[405884372,1771391437887,-500.0,5.384e-05,2]
[405884374,1771391437896,-500.0,5.384e-05,2]
[405884376,1771391437905,-500.0,5.384e-05,2]
[405884378,1771391437914,-500.0,5.384e-05,2]
[405884379,1771391437923,-500.0,5.384e-05,2]
[405884380,1771391437932,-318.91789357,5.384e-05,2]
[405884381,1771391437941,-500.0,5.384e-05,2]
[405884382,1771391437950,-500.0,5.384e-05,2]
[405884383,1771391437959,-500.0,5.384e-05,2]
[405884384,1771391437969,-500.0,5.384e-05,2]
[405884385,1771391437977,-312.69414156,5.384e-05,2]
[405884386,1771391437988,-187.30585844,5.384e-05,2]
[405884387,1771391437997,-289.03667887,5.384e-05,2]
[405884388,1771391438006,-500.0,5.384e-05,2]
[405884389,1771391438014,-500.0,5.384e-05,2]
[405884390,1771391438023,-500.0,5.384e-05,2]
[405884391,1771391438032,-500.0,5.384e-05,2]
[405884392,1771391438041,-500.0,5.384e-05,2]
[405884393,1771391438049,-500.0,5.384e-05,2]
[405884394,1771391438058,-152.2036269,5.479e-05,2]
[405884395,1771391438067,-2117.9577711,5.661e-05,2]
[405884396,1771391438078,-156.83119471,5.661e-05,2]
[405884397,1771391438090,-177.0,7.306e-05,2]
[405884398,1771391438104,-321.50968985,8.219e-05,2]
[405884399,1771391438114,-979.82454527,8.451e-05,2]
[405884400,1771391438123,-42.45073006,9.075e-05,2]
[405884401,1771391438135,-669.04511036,9.075e-05,2]
[405884402,1771391438146,-122.08308928,9.075e-05,2]
[405884403,1771391438155,-204.0,9.306e-05,2]
[405884404,1771391438165,-231.0,0.00011306,2]
[405884405,1771391438174,-387.92671623,0.00012363,2]
[405884406,1771391438183,-443.34481855,0.00012363,2]
[405884407,1771391438192,-5027.55343548,0.000129,2]
[405884762,1771391443098,-323.96330535,0.000129,2]
[405884764,1771391443108,-1170.67161581,0.000129,2]
[405884779,1771391443264,-511.27356478,0.000129,2]
[405884806,1771391445588,-3669.57156024,0.000129,2]
[405884807,1771391445598,-190.0,0.00012971,2]
[405884808,1771391445607,-500.0,0.00013273,2]
[405884809,1771391445616,-500.0,0.00013273,2]
[405884810,1771391445625,-500.0,0.00013273,2]
[405884811,1771391445635,-541.13471918,0.00013273,2]
[405884812,1771391445644,-500.0,0.00013273,2]
[405884813,1771391445653,-280.82391596,0.00013273,2]
[405884814,1771391445753,-219.17608404,0.00013273,2]
[405884815,1771391445762,-98.52991596,0.00013273,2]
[405884816,1771392023132,5000.0,5e-05,2]
[405884817,1771392044571,5000.0,5e-05,2]
[405884818,1771392067077,5000.0,5e-05,2]
[405884819,1771392089994,5000.0,5e-05,2]
[405884820,1771392111511,4829.395496,5e-05,2]
[405884835,1771392430136,-414.874504,4.754e-05,2]
[405884836,1771392430156,-370.51529067,4.802e-05,2]
[405884843,1771392565088,-244.27,4.706e-05,2]
[405884844,1771392565108,-244.27,4.754e-05,2]
[405884845,1771392565128,-244.27,4.802e-05,2]
[405884846,1771392565150,-150.0,4.925e-05,2]
[405884847,1771392565170,-300.0,5.112e-05,2]
[405884848,1771392565190,-300.0,5.113e-05,2]
[405884849,1771392565208,-500.0,5.113e-05,2]
[405884850,1771392565229,-500.0,5.113e-05,2]
[405884851,1771392565251,-500.0,5.113e-05,2]
[405884852,1771392565273,-500.0,5.113e-05,2]
[405884853,1771392565292,-500.0,5.113e-05,2]
[405884854,1771392565314,-500.0,5.113e-05,2]
[405884855,1771392565333,-500.0,5.113e-05,2]
[405884856,1771392565352,-500.0,5.113e-05,2]
[405884857,1771392565372,-500.0,5.113e-05,2]
[405884858,1771392565394,-500.0,5.113e-05,2]
[405884859,1771392565417,-489.10073143,5.113e-05,2]
[405884860,1771392574066,-1755.64105979,5.062e-05,2]
[405884885,1771392631815,-4509.84024453,4.961e-05,2]
[405884886,1771392631828,-109.88394702,5.01e-05,2]
[405884900,1771392638144,-1090.11605298,5.01e-05,2]
[405884901,1771392638154,-604.21640481,5.01e-05,2]
[405884902,1771392638164,-500.0,5.01e-05,2]
[405884903,1771392638174,-331.03397224,5.01e-05,2]
[405884926,1771392643960,-168.96602776,5.01e-05,2]
[405884927,1771392643969,-184.34469002,5.01e-05,2]
[405884928,1771392643981,-500.0,5.01e-05,2]
[405884929,1771392643990,-500.0,5.01e-05,2]
[405884930,1771392644000,-62.43928222,5.01e-05,2]
[405884931,1771392644011,-437.56071778,5.01e-05,2]
[405884932,1771392644021,-75.517297,5.01e-05,2]
[405884942,1771392645848,-424.482703,5.01e-05,2]
[405884944,1771392645857,-500.0,5.01e-05,2]
[405884945,1771392645868,-500.0,5.01e-05,2]
[405884946,1771392645877,-294.72980093,5.01e-05,2]
[405884947,1771392645888,-388.7130096,5.01e-05,2]
[405884948,1771392645897,-500.0,5.01e-05,2]
[405884949,1771392645906,-500.0,5.01e-05,2]
[405884950,1771392645916,-500.0,5.01e-05,2]
[405884951,1771392645924,-500.0,5.01e-05,2]
[405884952,1771392645933,-500.0,5.01e-05,2]
[405884953,1771392645942,-500.0,5.01e-05,2]
[405884954,1771392645951,-500.0,5.01e-05,2]
[405884955,1771392645960,-500.0,5.01e-05,2]
[405884956,1771392645969,-500.0,5.01e-05,2]
[405884957,1771392645978,-500.0,5.01e-05,2]
[405884958,1771392645988,-500.0,5.01e-05,2]
[405884959,1771392645997,-524.81210042,5.01e-05,2]
[405884960,1771392646006,-500.0,5.01e-05,2]
[405884961,1771392646014,-4509.84024453,5.011e-05,2]
[405884962,1771392646023,-300.0,5.061e-05,2]
[405884963,1771392646033,-300.0,5.061e-05,2]
[405884964,1771392646042,-300.0,5.061e-05,2]
[405884965,1771392646051,-300.0,5.061e-05,2]
[405884966,1771392646061,-9418.02556226,5.062e-05,2]
[405884967,1771392646069,-150.0,5.114e-05,2]
[405884968,1771392646078,-205.85,5.4e-05,2]
[405884969,1771392646087,-500.0,5.479e-05,2]
[405884970,1771392646096,-163.32976596,5.479e-05,2]
[405884971,1771392646105,-1211.01703671,5.479e-05,2]
[405884984,1771393316253,20474.91525814,0.000125,3]
[405884985,1771393332758,1000.0,0.0001,3]
[405884993,1771393746245,-1032.81,4.855e-05,2]
[405884994,1771393746264,-322.01901903,4.904e-05,2]
[405884995,1771393767137,-710.79098097,4.855e-05,2]
[405884996,1771393767163,-252.55721614,4.904e-05,2]
[405885010,1771393831966,-458.23376483,4.806e-05,2]
[405885011,1771393831976,-150.0,4.831e-05,2]
[405885012,1771393831985,-458.23376483,4.855e-05,2]
[405885013,1771393831995,-244.27,4.904e-05,2]
[405885014,1771393832005,-110.52323994,5.471e-05,2]
[405885015,1771393832016,-125.47676006,5.471e-05,2]
[405885016,1771393832026,-300.0,5.471e-05,2]
[405885017,1771393832035,-75.50660942,5.471e-05,2]
[405885036,1771393838076,-1645.49339058,5.416e-05,2]
[405885037,1771393838086,-224.49339058,5.471e-05,2]
[405885038,1771393838095,-221.0,5.471e-05,2]
[405885039,1771393838104,-1200.0,5.471e-05,2]
[405885040,1771393838113,-500.0,5.471e-05,2]
[405885041,1771393838123,-500.0,5.471e-05,2]
[405885042,1771393838132,-500.0,5.471e-05,2]
[405885043,1771393838141,-466.62486776,5.471e-05,2]
[405885044,1771393838150,-500.0,5.471e-05,2]
[405885045,1771393838163,-500.0,5.471e-05,2]
[405885046,1771393838173,-500.0,5.471e-05,2]
[405885047,1771393838182,-582.26205779,5.471e-05,2]
[405885048,1771393838193,-447.20134449,5.471e-05,2]
[405885049,1771393838202,-5088.67487489,5.479e-05,2]
[405885050,1771393838212,-3894.8163045,5.63e-05,2]
[405885051,1771393838221,-420.0,6.019e-05,2]
[405885052,1771393838230,-659.0,6.019e-05,2]
[405885053,1771393838239,-250.0,6.055e-05,2]
[405885054,1771393838248,-587.0,6.62e-05,2]
[405885055,1771393838258,-177.0,6.831e-05,2]
[405885056,1771393838267,-523.0,7.283e-05,2]
[405885057,1771393838276,-152.64812093,7.479e-05,2]
[405885058,1771393838286,-152.64812094,7.711e-05,2]
[405885059,1771393838295,-152.64812093,7.953e-05,2]
[405885060,1771393838304,-313.77886268,8.219e-05,2]
[405885061,1771393838313,-300.0,8.642e-05,2]
[405885062,1771393838322,-204.0,8.831e-05,2]
[405885063,1771393838332,-10682.18474186,0.0001,3]
[405885064,1771393838342,-170.3624878,0.00010411,2]
[405885065,1771393838351,-231.0,0.00010831,2]
[405885066,1771393838360,-500.0,0.00012721,2]
[405885067,1771393838369,-500.0,0.00012748,2]
[405885068,1771393838379,-500.0,0.00012803,2]
[405885069,1771393838388,-258.0,0.00012831,2]
[405885070,1771393838401,-500.0,0.00012858,2]
[405885071,1771393838411,-4919.68476682,0.000129,2]
[405885072,1771393838420,-168.0,0.00012912,2]
[405885073,1771393838430,-150.0,0.00012927,2]
[405885074,1771393838441,-150.0,0.00012982,2]
[405885075,1771393838451,-265.89415104,0.00013022,2]
[405885076,1771393838460,-500.0,0.00013022,2]
[405885077,1771393838470,-500.0,0.00013022,2]
[405885078,1771393838479,-538.8120586,0.00013022,2]
[405885079,1771393838488,-250.0,0.00013022,2]
[405885080,1771393838498,-308.29630008,0.00013022,2]
[405885081,1771393838508,-168.3888056,0.00013022,2]
[405885082,1771393838518,-260.40363199,0.00013022,2]
[405885083,1771393838527,-174.61919141,0.00013022,2]
[405885084,1771393838537,-181.08010149,0.00013022,2]
[405885085,1771393838546,-187.78006525,0.00013022,2]
[405885086,1771393838556,-194.72792766,0.00013022,2]
[405885087,1771393838565,-262.49454231,0.00013022,2]
[405885088,1771393838575,-201.93286099,0.00013022,2]
[405885089,1771393838584,-209.40437684,0.00013022,2]
[405885090,1771393838593,-250.0,0.00013022,2]
[405885091,1771393838603,-217.15233878,0.00013022,2]
[405885092,1771393838612,-278.09267329,0.00013022,2]
[405885093,1771393838622,-225.18697532,0.00013022,2]
[405885094,1771393838631,-250.0,0.00013022,2]
[405885095,1771393838641,-233.51889341,0.00013022,2]
[405885096,1771393838650,-250.0,0.00013022,2]
[405885097,1771393838660,-242.15909246,0.00013022,2]
[405885098,1771393838669,-260.58393685,0.00013022,2]
[405885099,1771393838678,-251.11897888,0.00013022,2]
[405885100,1771393838688,-260.4103811,0.00013022,2]
[405885101,1771393838697,-272.01213319,0.00013022,2]
[405885102,1771393838707,-259.03163771,0.00013022,2]
[405885103,1771393838716,-230.71952777,0.00013037,2]
[405885104,1771393838726,-500.0,0.00013273,2]
[405885105,1771393838738,-500.0,0.00013273,2]
[405885106,1771393838747,-500.0,0.00013273,2]
[405885107,1771393838756,-500.0,0.00013273,2]
[405885108,1771393838765,-367.41051332,0.00013273,2]
[405885109,1771393838775,-366.40852611,0.00013273,2]
[405885110,1771393838784,-500.0,0.00013273,2]
[405885111,1771393838793,-500.0,0.00013273,2]
[405885112,1771393838803,-500.0,0.00013273,2]
[405885113,1771393838813,-500.0,0.00013273,2]
[405885114,1771393838822,-500.0,0.00013273,2]
[405885115,1771393838831,-500.0,0.00013273,2]
[405885116,1771393838841,-500.0,0.00013273,2]
[405885117,1771393838850,-500.0,0.00013273,2]
[405885118,1771393838859,-500.0,0.00013273,2]
[405885119,1771393838868,-500.0,0.00013273,2]
[405885120,1771393838878,-500.0,0.00013273,2]
[405885121,1771393838888,-503.71445197,0.00013273,2]
[405885122,1771393838897,-500.0,0.00013293,2]
[405885123,1771393838908,-600.0,0.00013537,2]
[405885124,1771393838917,-231.89827661,0.00013548,2]
[405885125,1771393838926,-300.0,0.00013673,2]
[405885126,1771393838935,-3789.85,0.0001369,2]
[405885127,1771393838945,-500.0,0.00013698,2]